fUSD/lending_fUSD_20250911
["ID","MTS","AMOUNT","RATE_DAILY","PERIOD"]
[384856909,1757595061271,-500.0,0.00026448,9]
[384856910,1757595061279,-500.0,0.00026448,9]
[384856911,1757595061289,-500.0,0.00026448,9]
[384856912,1757595061298,-500.0,0.00026518,5]
[384856913,1757595061307,-500.0,0.00026523,2]
[384856914,1757595061316,-500.0,0.00026523,2]
[384856915,1757595061326,-150.0,0.00026523,2]
[384856916,1757595061335,-500.0,0.00026523,2]
[384856917,1757595061343,-500.0,0.00026523,2]
[384856918,1757595061353,-500.0,0.00026523,2]
[384856919,1757595061362,-500.0,0.00026523,2]
[384856920,1757595061371,-150.0,0.00026523,2]
[384856921,1757595061380,-271.71123387,0.00026523,2]
[384856922,1757595061389,-207.86621171,0.00026523,2]
[384856923,1757595061398,-150.0,0.00026523,2]
[384856924,1757595061407,-150.0,0.00026523,2]
[384856925,1757595061417,-500.0,0.00026523,2]
[384856926,1757595061426,-250.0,0.00026523,2]
[384856927,1757595061435,-278.56600931,0.00026523,2]
[384856928,1757595061445,-150.0,0.00026523,2]
[384856929,1757595061454,-16102.1789699,0.00026528,2]
[384856930,1757595061463,-6479.36868254,0.00026528,2]
[384856931,1757595061472,-500.0,0.00026538,7]
[384856932,1757595061481,-373.73553047,0.00026564,2]
[384856933,1757595061490,-417.90441116,0.00026578,2]
[384856934,1757595061500,-374.0,0.0002658,2]
[384856935,1757595061509,-1967.20132928,0.00026587,2]
[384856936,1757595061518,-1000.0,0.00026595,2]
[384856937,1757595061528,-1000.0,0.00026595,2]
[384856938,1757595061537,-501.92667689,0.00026595,2]
[384856939,1757595061546,-870.34,0.000266,7]
[384856940,1757595061555,-502.11604635,0.00026602,2]
[384856941,1757595061564,-510.64369519,0.00026602,2]
[384856942,1757595061573,-257.91778498,0.00026616,2]
[384856943,1757595061582,-201.67,0.0002662,7]
[384856944,1757595061591,-481.39,0.0002662,7]
[384856945,1757595061599,-1956.0,0.0002663,2]
[384856946,1757595061608,-2325.0,0.0002663,2]
[384856947,1757595061617,-1000.0,0.00026635,2]
[384856948,1757595061627,-336.0,0.00026638,2]
[384856949,1757595061636,-340.0,0.00026647,2]
[384856950,1757595061645,-270.6442763,0.00026648,2]
[384856951,1757595061654,-64408.7158796,0.00026648,2]
[384856952,1757595061663,-341.0,0.00026651,2]
[384856953,1757595061672,-3671.32456601,0.00026658,2]
[384856954,1757595062622,-1086.17662506,0.00026658,2]
[384856955,1757595063282,-551.19941091,0.00026658,2]
[384856956,1757595063294,-5688.5,0.00026658,2]
[384856957,1757595063338,-5721.40240832,0.00026658,2]
[384856958,1757595063349,-3805.46085479,0.00026658,2]
[384856959,1757595063417,-903.65793219,0.00026658,2]
[384856961,1757595245696,-221.99003658,0.00037488,30]
[384856962,1757595245721,-1084.960829,0.00037488,120]
[384856963,1757595245746,-196.43525983,0.00037488,120]
[384856964,1757595245770,-525.03306668,0.00037488,120]
[384856965,1757595245794,-152.70645123,0.00037488,120]
[384856966,1757595245822,-3205.40345862,0.00037488,30]
[384856967,1757595245848,-2038.61372735,0.00037488,120]
[384856968,1757595245875,-1090.43782089,0.00037488,120]
[384856969,1757595245902,-12866.83806214,0.00037488,120]
[384856970,1757595245928,-2787.00068561,0.00037488,120]
[384856971,1757595245954,-283.68723209,0.00037488,120]
[384856972,1757595245980,-172.51155923,0.00037488,60]
[384856973,1757595246006,-1107.54276836,0.00037488,120]
[384856974,1757595246031,-1352.72841246,0.00037488,120]
[384856975,1757595246056,-1499.99999908,0.00037488,75]
[384856976,1757595246081,-371.02857074,0.00037488,120]
[384856977,1757595246106,-308.32356539,0.00037488,30]
[384856978,1757595246132,-303.71836752,0.00037488,120]
[384856979,1757595246156,-168.43183073,0.00037488,30]
[384856980,1757595246180,-2802.56180595,0.00037488,30]
[384856981,1757595246205,-1733.27655764,0.00037488,30]
[384856982,1757595246231,-1829.32328322,0.00037488,30]
[384856983,1757595246256,-2422.11973666,0.00037488,30]
[384856984,1757595246281,-270.36308747,0.00037488,120]
[384856985,1757595246306,-934.14462914,0.00037488,60]
[384856986,1757595246333,-1521.80311757,0.00037488,30]
[384856987,1757595246358,-110082.35702424,0.00037488,30]
[384856988,1757595246384,-169.94544133,0.00037488,30]
[384856989,1757595246409,-955.91828839,0.00037488,120]
[384856990,1757595246434,-463.52212098,0.00037488,120]
[384856991,1757595246459,-335.70718077,0.00037488,30]
[384856992,1757595246806,-921.40579188,0.00037488,30]
[384856993,1757595246833,-279.00069647,0.00037488,60]
[384856994,1757595246860,-2018.17418112,0.00037488,30]
[384856995,1757595246887,-1213.15999526,0.00037488,30]
[384856996,1757595246913,-252.61255027,0.00037488,120]
[384856997,1757595246939,-1583.07538786,0.00037488,60]
[384856998,1757595246965,-2309.45986281,0.00037488,30]
[384856999,1757595246992,-1570.68052795,0.00037488,30]
[384857000,1757595247018,-7546.10197994,0.00037488,120]
[384857001,1757595247045,-500.0,0.00037488,120]
[384857002,1757595247071,-1448.33185681,0.00037488,120]
[384857003,1757595247098,-10105.758,0.00037488,120]
[384857004,1757595247124,-2690.0,0.00037488,60]
[384857005,1757595247150,-408.61293809,0.00037488,120]
[384857006,1757595247175,-1000.0,0.00037488,30]
[384857007,1757595247201,-17909.01136094,0.00037488,60]
[384857008,1757595247228,-50000.0,0.00037488,30]
[384857009,1757595247255,-50000.0,0.00037488,31]
[384857010,1757595247282,-50000.0,0.00037488,32]
[384857011,1757595247309,-50000.0,0.00037488,33]
[384857012,1757595247338,-50000.0,0.00037488,34]
[384857013,1757595247365,-50000.0,0.00037488,35]
[384857014,1757595247392,-50000.0,0.00037488,36]
[384857015,1757595247419,-50000.0,0.00037488,37]
[384857016,1757595247446,-50000.0,0.00037488,38]
[384857017,1757595247473,-50000.0,0.00037488,39]
[384857018,1757595247500,-1500.0,0.00037488,31]
[384857019,1757595247525,-213.0,0.00037488,30]
[384857020,1757595247550,-710.0,0.00037488,120]
[384857021,1757595247575,-3000.0,0.00037488,120]
[384857022,1757595247599,-3362.64126288,0.00037488,120]
[384857023,1757595247624,-185.0,0.00037488,120]
[384857024,1757595247652,-500.0,0.00037488,120]
[384857025,1757595247678,-432.5696,0.00037488,120]
[384857026,1757595247702,-169.21705874,0.00037488,120]
[384857027,1757595247727,-1657.0,0.00037488,120]
[384857028,1757595247752,-368.0,0.00037488,120]
[384857029,1757595247777,-940.78412952,0.00037488,120]
[384857030,1757595247806,-170.40170305,0.00037488,60]
[384857031,1757595247833,-12323.0,0.00037488,30]
[384857032,1757595247859,-1000.0,0.00037488,30]
[384857033,1757595247885,-40525.0,0.00037488,120]
[384857034,1757595247917,-5000.0,0.00037488,30]
[384857035,1757595247944,-183.6263101,0.00037488,30]
[384857036,1757595247973,-741.44737049,0.00037488,120]
[384857037,1757595248000,-151.55546802,0.00037488,120]
[384857038,1757595248027,-347.85028089,0.00037488,120]
[384857039,1757595248052,-161.43033976,0.00037488,90]
[384857040,1757595248080,-844.833207,0.00037488,120]
[384857041,1757595248106,-599.0,0.00037488,30]
[384857042,1757595248132,-552.76207743,0.00037488,120]
[384857043,1757595248157,-416509.49904395,0.00037488,30]
[384857044,1757595248184,-533.82939341,0.00037488,120]
[384857045,1757595248209,-30618.9258795,0.00037488,30]
[384857046,1757595248235,-692.36459106,0.00037488,30]
[384857047,1757595248262,-1259.40013723,0.00037488,30]
[384857048,1757595248291,-3022.72426475,0.00037488,30]
[384857049,1757595248321,-5100.0,0.00037488,36]
[384857050,1757595248351,-49000.0,0.00037488,73]
[384857051,1757595248378,-3406.19,0.00037488,120]
[384857052,1757595248404,-213.0,0.00037488,30]
[384857053,1757595248430,-999.999996,0.00037488,120]
[384857054,1757595248456,-10932.08217601,0.00037488,30]
[384857055,1757595248482,-1004.1717,0.00037488,120]
[384857056,1757595248507,-419.57335,0.00037488,60]
[384857057,1757595248533,-336.51266,0.00037488,60]
[384857058,1757595248557,-167.0539634,0.00037488,120]
[384857059,1757595248584,-68187.76008163,0.00037488,30]
[384857060,1757595248612,-28407.34238845,0.00037488,120]
[384857061,1757595248637,-70000.0,0.00037488,90]
[384857062,1757595248663,-1739196.42,0.00037488,60]
[384857063,1757595248688,-379.25027273,0.00037488,120]
[384857064,1757595248715,-358.0,0.00037488,120]
[384857065,1757595248741,-1298.46241783,0.00037488,120]
[384857066,1757595248766,-848.19045042,0.00037488,120]
[384857067,1757595248792,-17665.04586366,0.00037488,30]
[384857068,1757595248821,-325.79521783,0.00037488,120]
[384857069,1757595248849,-247.92461953,0.00037488,120]
[384857070,1757595248875,-3072.87790026,0.00037488,30]
[384857071,1757595248902,-2756.96358894,0.00037488,30]
[384857072,1757595248928,-852.54559785,0.00037488,30]
[384857073,1757595248954,-3278.17125356,0.00037488,30]
[384857074,1757595248979,-520.04663521,0.00037488,120]
[384857075,1757595249005,-854.62027891,0.00037488,30]
[384857076,1757595249034,-2524.97492538,0.00037488,120]
[384857077,1757595249059,-283.77204895,0.00037488,30]
[384857078,1757595249086,-574.98317727,0.00037488,120]
[384857079,1757595249112,-2224.74406694,0.00037488,30]
[384857080,1757595249139,-392.50552873,0.00037488,30]
[384857081,1757595249166,-844.52708106,0.00037488,120]
[384857082,1757595249192,-1090.53347371,0.00037488,120]
[384857083,1757595249218,-1642.27658417,0.00037488,120]
[384857084,1757595249244,-1001.86892745,0.00037488,120]
[384857085,1757595249270,-314.48949623,0.00037488,30]
[384857086,1757595249295,-317.32514057,0.00037488,120]
[384857087,1757595249321,-2930.8163351,0.00037488,120]
[384857088,1757595249348,-2995.36743854,0.00037488,30]
[384857089,1757595249373,-644.96750566,0.00037488,120]
[384857090,1757595249399,-2000.0,0.00037488,30]
[384857091,1757595249425,-269.05872742,0.00037488,120]
[384857092,1757595249451,-128159.56105554,0.00037488,120]
[384857093,1757595249476,-16905.66571643,0.00037488,120]
[384857094,1757595249501,-906.63236353,0.00037488,120]
[384857095,1757595249527,-3000.0,0.00037488,120]
[384857096,1757595249786,-3000.0,0.00037488,120]
[384857097,1757595249831,-2383.12454797,0.00037488,60]
[384857098,1757595249875,-2103.56176869,0.00037488,120]
[384857099,1757595249901,-4000.0,0.00037488,60]
[384857100,1757595249927,-16090.88031,0.00037488,31]
[384857101,1757595249953,-1820.5,0.00037488,60]
[384857102,1757595249978,-5548.42433308,0.00037488,120]
[384857103,1757595250004,-2036.09096115,0.00037488,120]
[384857104,1757595250030,-150.09091199,0.00037488,120]
[384857105,1757595250055,-2083.85179192,0.00037488,90]
[384857106,1757595250082,-1695.49042954,0.00037488,120]
[384857107,1757595250108,-4299.75849753,0.00037488,120]
[384857108,1757595250134,-2385.04859187,0.00037488,120]
[384857109,1757595250159,-4407.32707573,0.00037488,91]
[384857110,1757595250186,-2469.05168454,0.00037488,120]
[384857111,1757595250211,-2298.19759114,0.00037488,120]
[384857112,1757595250239,-2251.11974195,0.00037488,120]
[384857113,1757595250265,-2687.37173091,0.00037488,120]
[384857114,1757595250291,-3694.36319636,0.00037488,120]
[384857115,1757595250317,-3292.92814805,0.00037488,120]
[384857116,1757595250345,-4712.70202389,0.00037488,90]
[384857117,1757595250371,-3182.92590385,0.00037488,60]
[384857118,1757595250395,-2135.42400524,0.00037488,60]
[384857119,1757595250420,-1996.49072604,0.00037488,120]
[384857120,1757595250444,-2610.51838125,0.00037488,60]
[384857121,1757595250470,-2144.02715676,0.00037488,120]
[384857122,1757595250518,-3308.16511296,0.00037488,120]
[384857123,1757595250563,-1430.5059484,0.00037488,120]
[384857124,1757595250609,-2940.53187704,0.00037488,120]
[384857125,1757595250656,-1345.96149768,0.00037488,120]
[384857126,1757595250690,-1516.43517045,0.00037488,120]
[384857127,1757595250715,-2917.04761679,0.00037488,120]
[384857128,1757595250741,-1784.7431023,0.00037488,120]
[384857129,1757595250766,-1346.19196731,0.00037488,120]
[384857130,1757595250792,-2136.51010131,0.00037488,120]
[384857131,1757595250820,-1755.34554519,0.00037488,120]
[384857132,1757595250847,-2913.34240453,0.00037488,120]
[384857133,1757595250872,-7469.19196051,0.00037488,60]
[384857134,1757595250898,-2353.86632695,0.00037488,120]
[384857135,1757595250923,-2547.42652719,0.00037488,120]
[384857136,1757595250949,-1878.43878277,0.00037488,30]
[384857137,1757595250975,-1360.26610336,0.00037488,120]
[384857138,1757595251003,-2586.84010387,0.00037488,120]
[384857139,1757595251029,-3583.40529871,0.00037488,120]
[384857140,1757595251055,-2890.38822474,0.00037488,120]
[384857141,1757595251080,-2339.71254407,0.00037488,120]
[384857142,1757595251108,-2616.7138897,0.00037488,120]
[384857143,1757595251140,-3488.22965891,0.00037488,120]
[384857144,1757595251167,-1429.96704914,0.00037488,120]
[384857145,1757595251198,-3665.45111945,0.00037488,120]
[384857146,1757595251223,-1917.52955127,0.00037488,120]
[384857147,1757595251252,-1422.40898022,0.00037488,120]
[384857148,1757595251282,-468.6159899,0.00037488,30]
[384857149,1757595251310,-2422.0,0.00037488,30]
[384857150,1757595251342,-836.16,0.00037488,30]
[384857151,1757595251370,-627.48,0.00037488,30]
[384857152,1757595251400,-173.0,0.00037488,120]
[384857153,1757595251425,-2021.23125703,0.00037488,30]
[384857154,1757595251451,-257.682649,0.00037488,60]
[384857155,1757595251483,-1348.47912379,0.00037488,120]
[384857156,1757595251511,-1200.39756313,0.00037488,120]
[384857157,1757595251543,-1245.84026406,0.00037488,120]
[384857158,1757595251571,-42707.8674759,0.00037488,120]
[384857159,1757595251603,-3612.79,0.00037488,31]
[384857160,1757595251629,-2000.0,0.00037488,30]
[384857161,1757595251655,-1087.0,0.00037488,30]
[384857162,1757595251679,-1087.0,0.00037488,30]
[384857163,1757595251704,-1087.0,0.00037488,30]
[384857164,1757595251729,-1087.0,0.00037488,30]
[384857165,1757595251754,-1087.0,0.00037488,30]
[384857166,1757595252061,1248.22240847,0.00037488,30]
[384857167,1757595270292,-173.91,0.00027397,80]
[384857168,1757595270317,-1022.66,0.00027425,30]
[384857169,1757595270456,-267.44,0.00028012,30]
[384857170,1757595270676,-267.44,0.00029365,30]
[384857171,1757595270736,-214.0,0.0002963,30]
[384857172,1757595270829,-1163.0,0.00030137,120]
[384857173,1757595270855,-8929.0,0.00030284,30]
[384857174,1757595270883,-214.0,0.000304,30]
[384857175,1757595270941,-2000.0,0.00030523,120]
[384857176,1757595270967,-512.107259,0.00030523,120]
[384857177,1757595271024,-267.44,0.00030719,30]
[384857178,1757595271053,-168.51,0.00030877,120]
[384857179,1757595271081,-2327.43508179,0.00030888,60]
[384857180,1757595271141,-13649.20368101,0.00031,30]
[384857181,1757595271168,-152.0,0.00031,120]
[384857182,1757595271194,-515.37529716,0.00031,30]
[384857183,1757595271220,-968.34,0.00031,30]
[384857184,1757595271246,-212.89373682,0.00031,30]
[384857185,1757595271272,-214.0,0.0003118,30]
[384857186,1757595271389,-214.0,0.0003195,30]
[384857187,1757595271414,-5352.70766841,0.00032,120]
[384857188,1757595271439,-9900.0,0.00032,60]
[384857189,1757595271464,-2037.32,0.00032,32]
[384857190,1757595271489,-968.34,0.00032,30]
[384857191,1757595271544,-267.44,0.00032073,30]
[384857192,1757595271865,-2000.0,0.00032224,120]
[384857193,1757595271922,-152.0,0.000326,120]
[384857194,1757595271976,-214.0,0.0003272,30]
[384857195,1757595272019,-1402.48,0.00032876,120]
[384857196,1757595272047,-1402.48,0.00032876,120]
[384857197,1757595272072,-1402.48,0.00032876,120]
[384857198,1757595272098,-1402.48,0.00032876,120]
[384857199,1757595272124,-1402.48,0.00032876,120]
[384857200,1757595272150,-1402.48,0.00032876,120]
[384857201,1757595272177,-1402.48,0.00032876,120]
[384857202,1757595272204,-1402.48,0.00032876,120]
[384857203,1757595272230,-1402.48,0.00032876,120]
[384857204,1757595272256,-1402.48,0.00032876,120]
[384857205,1757595272283,-1402.48,0.00032876,120]
[384857206,1757595272310,-1402.48,0.00032876,120]
[384857207,1757595272340,-1402.48,0.00032876,120]
[384857208,1757595272368,-1402.48,0.00032876,120]
[384857209,1757595272395,-1402.48,0.00032876,120]
[384857210,1757595272422,-1402.48,0.00032876,120]
[384857211,1757595272448,-1402.48,0.00032876,120]
[384857212,1757595272475,-1402.48,0.00032876,120]
[384857213,1757595272502,-1402.48,0.00032876,120]
[384857214,1757595272528,-1402.48,0.00032876,120]
[384857215,1757595272554,-1402.48,0.00032876,120]
[384857216,1757595272592,-5013.75886387,0.0003288,30]
[384857217,1757595272619,-5013.75886387,0.0003288,30]
[384857218,1757595272644,-5013.75886387,0.0003288,30]
[384857219,1757595272670,-5013.75886387,0.0003288,30]
[384857220,1757595272696,-5013.75886387,0.0003288,30]
[384857221,1757595272721,-5013.75886387,0.0003288,30]
[384857222,1757595272746,-5013.75886387,0.0003288,30]
[384857223,1757595272772,-5013.75886387,0.0003288,30]
[384857224,1757595272798,-5013.75886387,0.0003288,30]
[384857225,1757595272824,-5013.75886387,0.0003288,30]
[384857226,1757595272851,-5013.75886387,0.0003288,30]
[384857227,1757595272881,-5013.75886387,0.0003288,30]
[384857228,1757595272908,-5013.75886387,0.0003288,30]
[384857229,1757595272934,-5013.75886387,0.0003288,30]
[384857230,1757595272962,-5013.75886387,0.0003288,30]
[384857231,1757595272990,-5013.75886387,0.0003288,30]
[384857232,1757595273018,-5013.75886387,0.0003288,30]
[384857233,1757595273046,-5013.75886387,0.0003288,30]
[384857234,1757595273074,-5013.75886387,0.0003288,30]
[384857235,1757595273103,-5013.75,0.0003288,30]
[384857236,1757595273131,-1893.33196331,0.0003288,30]
[384857237,1757595273161,-1893.33196331,0.0003288,30]
[384857238,1757595273190,-1893.33196331,0.0003288,30]
[384857239,1757595273219,-1893.33196331,0.0003288,30]
[384857240,1757595273248,-1893.33196331,0.0003288,30]
[384857241,1757595273276,-1893.33196331,0.0003288,30]
[384857242,1757595273305,-1893.33196331,0.0003288,30]
[384857243,1757595273333,-1893.33196331,0.0003288,30]
[384857244,1757595273362,-1893.33196331,0.0003288,30]
[384857245,1757595273391,-1893.33196331,0.0003288,30]
[384857246,1757595273419,-1893.33196331,0.0003288,30]
[384857247,1757595273447,-1893.33196331,0.0003288,30]
[384857248,1757595273474,-1893.33196331,0.0003288,30]
[384857249,1757595273501,-1893.33196331,0.0003288,30]
[384857250,1757595273528,-1893.33196331,0.0003288,30]
[384857251,1757595273556,-1893.33196331,0.0003288,30]
[384857252,1757595273584,-1893.33196331,0.0003288,30]
[384857253,1757595273611,-1893.33196331,0.0003288,30]
[384857254,1757595273639,-1893.33196331,0.0003288,30]
[384857255,1757595273666,-1893.33,0.0003288,30]
[384857256,1757595273694,-2221.17004803,0.0003288,30]
[384857257,1757595273723,-2221.17004803,0.0003288,30]
[384857258,1757595273751,-2221.17004803,0.0003288,30]
[384857259,1757595273778,-2221.17004803,0.0003288,30]
[384857260,1757595273805,-2221.17004803,0.0003288,30]
[384857261,1757595273833,-2221.17004803,0.0003288,30]
[384857262,1757595273863,-2221.17004803,0.0003288,30]
[384857263,1757595273892,-2221.17004803,0.0003288,30]
[384857264,1757595273922,-2221.17004803,0.0003288,30]
[384857265,1757595273952,-2221.17004803,0.0003288,30]
[384857266,1757595273980,-2221.17004803,0.0003288,30]
[384857267,1757595274008,-2221.17004803,0.0003288,30]
[384857268,1757595274035,-2221.17004803,0.0003288,30]
[384857269,1757595274066,-2221.17004803,0.0003288,30]
[384857270,1757595274093,-2221.17004803,0.0003288,30]
[384857271,1757595274120,-2221.17004803,0.0003288,30]
[384857272,1757595274147,-2221.17004803,0.0003288,30]
[384857273,1757595274174,-2221.17004803,0.0003288,30]
[384857274,1757595274201,-2221.17004803,0.0003288,30]
[384857275,1757595274229,-2221.17,0.0003288,30]
[384857276,1757595274256,-968.34,0.000329,30]
[384857277,1757595274284,-16750.0,0.00033,30]
[384857278,1757595274310,-2615.91819503,0.00033,120]
[384857279,1757595274336,-2154.98983634,0.00033,120]
[384857280,1757595274364,-515.37529716,0.00033,120]
[384857281,1757595274390,-212.89373682,0.00033,120]
[384857282,1757595274431,-1402.48,0.0003315,120]
[384857283,1757595274483,-1402.48,0.00033424,120]
[384857284,1757595274523,-267.44,0.00033427,30]
[384857285,1757595274549,-2000.0,0.00033449,120]
[384857286,1757595274576,-214.0,0.000335,30]
[384857287,1757595274604,-1022.66,0.00033649,30]
[384857288,1757595274647,-1402.69,0.00033698,120]
[384857289,1757595274901,-200.0,0.00034,120]
[384857290,1757595274930,-2872.03426264,0.00034,120]
[384857291,1757595274960,-154.0,0.00034,30]
[384857292,1757595274988,-968.34,0.00034,30]
[384857293,1757595275014,-200.0,0.00034,30]
[384857294,1757595275043,-1179.31,0.00034198,120]
[384857295,1757595275069,-152.0,0.000342,120]
[384857296,1757595275094,-214.0,0.0003427,30]
[384857297,1757595275121,-1247.42,0.00034622,60]
[384857298,1757595275147,-414.5,0.00034628,30]
[384857299,1757595275173,-2000.0,0.00034673,120]
[384857300,1757595275198,-1247.42,0.00034722,60]
[384857301,1757595275225,-267.44,0.00034781,30]
[384857302,1757595275251,-1247.42,0.00034822,60]
[384857303,1757595275275,-1247.42,0.00034922,60]
[384857304,1757595275300,-967.208749,0.00035,36]
[384857305,1757595275325,-10221.0,0.00035,120]
[384857306,1757595275350,-2510.67960562,0.00035,90]
[384857307,1757595275375,-3000.0,0.00035,120]
[384857308,1757595275400,-4118.12546398,0.00035,120]
[384857309,1757595275425,-154.0,0.00035,30]
[384857310,1757595275449,-200.0,0.00035,120]
[384857311,1757595275473,-547.14189055,0.00035,30]
[384857312,1757595275499,-1247.42,0.00035022,60]
[384857313,1757595275524,-214.0,0.0003504,30]
[384857314,1757595275549,-1247.42,0.00035122,60]
[384857315,1757595275575,-1247.42,0.00035222,60]
[384857316,1757595275601,-1247.42,0.00035322,60]
[384857317,1757595275627,-1247.42,0.00035422,60]
[384857318,1757595275653,-1247.42,0.00035522,60]
[384857319,1757595275678,-150.0,0.00035527,120]
[384857320,1757595275703,-400.0,0.00035616,120]
[384857321,1757595275728,-650.0,0.00035616,120]
[384857322,1757595275753,-650.0,0.00035616,120]
[384857323,1757595275777,-650.0,0.00035616,120]
[384857324,1757595275802,-650.0,0.00035616,120]
[384857325,1757595275827,-650.0,0.00035616,120]
[384857326,1757595275851,-650.0,0.00035616,120]
[384857327,1757595275876,-650.0,0.00035616,120]
[384857328,1757595275901,-650.0,0.00035616,120]
[384857329,1757595275927,-650.0,0.00035616,120]
[384857330,1757595275952,-650.0,0.00035616,120]
[384857331,1757595275977,-650.0,0.00035616,120]
[384857332,1757595276001,-650.0,0.00035616,120]
[384857333,1757595276027,-598.11646645,0.00035616,120]
[384857334,1757595276053,-1247.42,0.00035622,60]
[384857335,1757595276079,-150.0,0.00035695,120]
[384857336,1757595276106,-150.0,0.00035699,120]
[384857337,1757595276132,-1247.42,0.00035722,60]
[384857338,1757595276159,-152.0,0.000358,120]
[384857339,1757595276183,-214.0,0.0003581,30]
[384857340,1757595276209,-1247.42,0.00035822,60]
[384857341,1757595276237,-1029.92427,0.00035888,30]
[384857342,1757595276261,-2000.0,0.00035898,120]
[384857343,1757595276287,-1247.42,0.00035922,60]
[384857344,1757595276311,-1800.0,0.00036,37]
[384857345,1757595276335,-200.0,0.00036,120]
[384857346,1757595276362,-200.0,0.00036,120]
[384857347,1757595276387,-2012.8728935,0.00036,120]
[384857348,1757595276412,-1319.31962237,0.00036,120]
[384857349,1757595276437,-154.0,0.00036,30]
[384857350,1757595276463,-1247.42,0.00036022,60]
[384857351,1757595276489,-150.0,0.00036077,120]
[384857352,1757595276514,-1029.92427,0.00036088,30]
[384857353,1757595276541,-1247.42,0.00036122,60]
[384857354,1757595276566,-267.44,0.00036134,60]
[384857355,1757595276591,-400.0,0.00036164,120]
[384857356,1757595276618,-1247.42,0.00036222,60]
[384857357,1757595276643,-1029.92427,0.00036288,30]
[384857358,1757595276668,-1247.42,0.00036322,60]
[384857359,1757595276697,-150.0,0.00036325,120]
[384857360,1757595276725,-1247.42,0.00036422,60]
[384857361,1757595276751,-1029.92427,0.00036488,30]
[384857362,1757595276775,-424.88918237,0.000365,120]
[384857363,1757595276800,-2880.70041472,0.000365,120]
[384857364,1757595276826,-1247.42,0.00036522,60]
[384857365,1757595276851,-214.0,0.0003659,30]
[384857366,1757595276879,-1247.42,0.00036622,60]
[384857367,1757595276907,-1029.92427,0.00036688,30]
[384857368,1757595276933,-150.0,0.0003669,120]
[384857369,1757595276959,-400.0,0.00036712,120]
[384857370,1757595276985,-1247.42,0.00036722,60]
[384857371,1757595277014,-5000.0,0.000368,120]
[384857372,1757595277040,-1247.42,0.00036822,60]
[384857373,1757595277065,-1663.88740539,0.00036839,30]
[384857374,1757595277090,-800.0,0.0003688,120]
[384857375,1757595277115,-1029.92427,0.00036888,30]
[384857376,1757595277140,-163.09341654,0.000369,120]
[384857377,1757595277166,-844.91833757,0.000369,120]
[384857378,1757595277190,-1719.53475755,0.000369,120]
[384857379,1757595277216,-1247.42,0.00036922,60]
[384857380,1757595277241,-1179.31,0.00036938,120]
[384857381,1757595277266,-1003.0,0.00037,120]
[384857382,1757595277290,-899.66253264,0.00037,30]
[384857383,1757595277315,-1800.0,0.00037,38]
[384857384,1757595277339,-163.88703488,0.00037,30]
[384857385,1757595277365,-212.89373682,0.00037,120]
[384857386,1757595277390,-10221.0,0.00037,120]
[384857387,1757595277415,-1247.42,0.00037022,60]
[384857388,1757595277442,-168.51,0.00037052,120]
[384857389,1757595277466,-1029.92427,0.00037088,30]
[384857390,1757595277493,-1247.42,0.00037122,60]
[384857391,1757595277517,-1546.803717,0.00037123,120]
[384857392,1757595277738,-191.5249757,0.000372,120]
[384857393,1757595277762,-191.5249757,0.000372,120]
[384857394,1757595277786,-3032.33110876,0.00037212,120]
[384857395,1757595277811,-1247.42,0.00037222,60]
[384857396,1757595277834,-400.0,0.0003726,120]
[384857397,1757595277859,-150.0,0.00037283,120]
[384857398,1757595277885,-1029.92427,0.00037288,30]
[384857399,1757595277910,-649.01,0.000373,30]
[384857400,1757595277936,-152.0,0.000373,120]
[384857401,1757595277960,-1000.0,0.00037315,100]
[384857402,1757595277986,-1247.42,0.00037322,60]
[384857403,1757595278011,-1000.0,0.00037333,30]
[384857404,1757595278035,-1000.0,0.00037333,30]
[384857405,1757595278061,-1000.0,0.00037333,30]
[384857406,1757595278086,-1000.0,0.00037333,30]
[384857407,1757595278110,-1000.0,0.00037333,30]
[384857408,1757595278135,-1000.0,0.00037333,30]
[384857409,1757595278160,-1000.0,0.00037333,30]